[Event "MPL-4 Indian Chess Tour 2022"]
[Site "Chess24"]
[Date "2022.09.27"]
[Round "6.5"]
[White "Adhiban, B.."]
[Black "Vaibhav, Suri"]
[Result "1-0"]
[ECO "E18"]
[WhiteElo "2603"]
[BlackElo "2600"]
[Annotator "TA"]
[PlyCount "83"]
[EventDate "2022.09.29"]
[EventType "tourn (rapid)"]
[EventCountry "NET"]
[SourceTitle "playchess.com"]
[Source "ChessBase"]
[SourceQuality "1"]
[WhiteTeam "India"]
[BlackTeam "India"]
[WhiteTeamCountry "IND"]
[BlackTeamCountry "IND"]
[TimeControl "900+10"]

{[%evp 18,83,8,26,33,10,0,0,14,10,78,81,79,83,71,67,115,116,121,121,112,113,113,110,132,127,120,54,65,39,39,34,52,0,0,0,0,0,0,0,68,68,111,115,189,191,184,0,0,0,0,-427,683,568,29983,29984,29984,29984,29984,29979,29985,29986,29990,29991,29992,29993,29995,29996]} 1. c4 {[%emt 0:00:00]} e6 {[%emt 0:00:00]} 2. Nf3 {[%emt 0:00:06]} d5 {[%emt 0:00:02]} 3. g3 {[%emt 0:00:01]} Nf6 {[%emt 0:00:10]} 4. Bg2 {[%emt 0:00:01]} b6 {[%emt 0:00:00]} 5. O-O {[%emt 0:00:27]} Bb7 {[%emt 0:00:01]} 6. cxd5 {[%emt 0:00:01]} exd5 {[%emt 0:00:01]} 7. d4 {[%emt 0:00:03]} Be7 {[%emt 0:00:01]} 8. Nc3 {[%emt 0:00:01]} O-O {[%emt 0:00:02]} 9. Ne5 {[%emt 0:00:01]} Na6 {[%emt 0:00:13] is now debated instead of 9...Nbd7.} 10. Bg5 {[%emt 0:00:41]} c5 {[%emt 0:00:45] E18: Queen's Indian: Old Main Line (4 g3 Bb7 5 Bg2 Be7 6 0-0 0-0 7 Nc3).} 11. dxc5 {[%emt 0:03:51]} Nxc5 {[%emt 0:00:09]} 12. Rc1 {[%emt 0:00:07]} Re8 {[%emt 0:03:07] [#] The position is equal.} (12... Ne6 $5 {[%cal Re6g5]} 13. Bxf6 Bxf6 $11) 13. Nb5 $146 {[%emt 0:01:17]} ({Predecessor:} 13. Nd3 Nce4 14. Bf4 Rc8 15. Nb5 Qd7 16. Nd4 Rxc1 17. Qxc1 Rc8 18. Qd1 Bc5 19. Ne5 Qe8 20. Nef3 Ba6 {½-½ (20) Slipak,S (2520)-Morovic Fernandez,I (2585) Argentina 1995}) 13... Ne6 {[%emt 0:04:04]} (13... Nfe4 $11 {keeps the balance.} 14. Bxe7 Qxe7) 14. Bxf6 $16 {[%emt 0:00:02]} Bxf6 {[%emt 0:00:03]} 15. Nc6 {[%emt 0:00:01]} Bxc6 {[%emt 0:02:09]} 16. Rxc6 {[%emt 0:00:00]} Bxb2 {[%emt 0:00:29]} (16... Qe7 $14) 17. Bxd5 {[%emt 0:00:04]} Be5 {[%emt 0:03:49][%cal Oe6d4] Prevents Nd6.} 18. Qb3 {[%emt 0:05:54]} Qd7 {[%emt 0:00:03] [#]} 19. Rxe6 $1 {[%emt 0:00:10][%mdl 512]} fxe6 {[%emt 0:00:07]} 20. Bxa8 {[%emt 0:00:04]} Rxa8 {[%emt 0:00:02]} 21. Rd1 {[%emt 0:00:02]} Qe7 {[%emt 0:01:23]} 22. f4 {[%emt 0:00:08]} (22. Qa4 $16 {Black must now prevent Qe4.} Bf6 23. Rd6) 22... a6 $14 {[%emt 0:01:06]} 23. fxe5 {[%emt 0:00:04]} axb5 {[%emt 0:00:01][%mdl 4096] Endgame KQR-KQR} 24. Rd6 {[%emt 0:00:01]} h6 {[%emt 0:00:44]} 25. Rxe6 {[%emt 0:00:45]} ({Better is} 25. a3 $14) 25... Qc5+ $11 {[%emt 0:00:01]} 26. Kg2 {[%emt 0:00:04] Threatening mate with Re8+.} Kh8 {[%emt 0:00:08]} 27. Qf3 {[%emt 0:02:33]} Rf8 {[%emt 0:00:03]} 28. Qe4 {[%emt 0:01:17]} (28. Rc6 Rxf3 29. Rxc5 Rxg3+ 30. Kxg3 bxc5 $19) 28... Qf2+ {[%emt 0:00:35]} (28... Rf2+ $1 $11 29. Kh3 Qc8) 29. Kh3 $14 {[%emt 0:00:01] Active counter play!} Qf1+ {[%emt 0:00:14] [#]} 30. Kg4 $1 {[%emt 0:00:06]} Qf7 {[%emt 0:00:19]} (30... Qf2 $16) 31. Rxb6 $18 {[%emt 0:00:33]} Rc8 {[%emt 0:00:11]} 32. e6 $2 {[%emt 0:00:19]} (32. Qf5 $18 Qc4+ 33. Kh3) 32... h5+ $11 {[%emt 0:00:02]} 33. Kh4 {[%emt 0:00:15]} Qf6+ {[%emt 0:00:01]} 34. Kxh5 $2 {[%emt 0:00:03][%mdl 8192]} (34. Kh3 $1 $11 {and White is okay.} Qf1+ 35. Kh4) 34... Rc5+ $4 {[%emt 0:00:09][%mdl 8192]} (34... g6+ $19 35. Kh6 (35. Kg4 $2 Rc4 $19) 35... Qg7+ 36. Kg5 Rc5+ 37. Kf4 (37. Kg4 $2 Rc4 $19) 37... Rc4 38. Rb8+ Kh7 39. Rxb5 Qf6+ 40. Ke3 Rxe4+ 41. Kxe4 Qxe6+ 42. Re5 Qh3) 35. Kg4 $18 {[%emt 0:00:02] White threatens Rb8+ and mate.} Qd8 {[%emt 0:00:31] Against Rb8. Strongly threatening ...Rc4.} 36. e7 {[%emt 0:00:07][%cal Re7d8] White mates.} Qc8+ {[%emt 0:00:03]} 37. Re6 {[%emt 0:00:12]} Qe8 {[%emt 0:00:01]} 38. Kh3 {[%emt 0:00:46]} Kg8 {[%emt 0:00:01]} 39. Rd6 {[%emt 0:00:12]} Qh5+ {[%emt 0:00:09]} 40. Kg2 {[%emt 0:00:02]} Re5 {[%emt 0:00:00]} 41. Rd8+ {[%emt 0:00:00]} Kf7 {[%emt 0:00:05]} 42. e8=Q+ {[%emt 0:00:01] Weighted Error Value: White=0.27 (precise) /Black=0.60} 1-0

[Event "MPL-4 Indian Chess Tour 2022"]
[Site "Chess24"]
[Date "2022.09.27"]
[Round "6.6"]
[White "Karthikeyan, Murali"]
[Black "Mitrabha, Guha"]
[Result "1-0"]
[ECO "D00"]
[WhiteElo "2623"]
[BlackElo "2471"]
[Annotator "TA"]
[PlyCount "39"]
[EventDate "2022.09.29"]
[EventType "tourn (rapid)"]
[EventCountry "NET"]
[SourceTitle "playchess.com"]
[Source "ChessBase"]
[SourceQuality "1"]
[WhiteTeam "India"]
[BlackTeam "India"]
[WhiteTeamCountry "IND"]
[BlackTeamCountry "IND"]
[TimeControl "900+10"]

{[%evp 11,39,0,6,7,20,14,13,14,8,12,31,24,33,27,24,27,134,145,133,134,314,318,317,307,430,431,447,439,408,408]} 1. Nf3 {[%emt 0:00:00]} d5 {[%emt 0:00:00]} 2. d4 {[%emt 0:00:04]} Nf6 {[%emt 0:00:03]} 3. Bf4 {[%emt 0:00:01]} c5 {[%emt 0:00:03]} 4. e3 {[%emt 0:00:01]} Nc6 {[%emt 0:00:03]} 5. Nbd2 {[%emt 0:00:01]} Bf5 {[%emt 0:00:22]} 6. c3 {[%emt 0:00:12]} e6 {[%emt 0:00:04] 6...e6 is better than 6...Qb6.} 7. Qb3 {[%emt 0:00:48] D00: 1 d4 d5: Unusual lines.} Qb6 {[%emt 0:00:22]} 8. Qxb6 {[%emt 0:00:17]} axb6 {[%emt 0:00:01]} 9. Bb5 {[%emt 0:00:36] The position is equal.} Nd7 {[%emt 0:00:10]} 10. O-O {[%emt 0:00:12] [#]} h6 $146 {[%emt 0:00:06]} ({Predecessor:} 10... f6 11. Rfe1 g5 12. Bg3 Kf7 13. dxc5 Nxc5 14. Nd4 Nxd4 15. exd4 Na4 16. Bxa4 Rxa4 {1-0 (74) Moroni,L (2530)-Lintchevski,D (2559) Chess.com INT 2020}) 11. Rfe1 {[%emt 0:01:19]} Be7 {[%emt 0:00:22]} 12. e4 {[%emt 0:01:08]} dxe4 {[%emt 0:00:04]} 13. Nxe4 {[%emt 0:00:00]} O-O {[%emt 0:00:13] [#]} (13... Bxe4 $11 14. Rxe4 Nf6) 14. Ng3 $1 $16 {[%emt 0:00:22] White is more active.} ({Don't take} 14. Nd6 $6 Bxd6 15. Bxd6 Rfd8 $14) 14... Bg4 {[%emt 0:01:16]} 15. d5 $1 {[%emt 0:00:18]} Ncb8 {[%emt 0:00:15] A mistake that costs the game.} (15... g5 $16) 16. Bxb8 $18 {[%emt 0:00:58]} Nxb8 {[%emt 0:00:09]} 17. Ne5 {[%emt 0:00:03]} Bf5 {[%emt 0:00:18]} (17... h5 {is a better defense.} 18. h3 h4 19. Nxg4 hxg3 20. fxg3 (20. dxe6 gxf2+ 21. Nxf2 Nc6 $18) 20... Bg5 21. dxe6 fxe6 22. Rxe6 Nc6) 18. Nxf5 {[%emt 0:00:16]} exf5 {[%emt 0:00:05] [#]} 19. Ng6 $1 {[%emt 0:01:52][%mdl 512]} fxg6 {[%emt 0:01:13]} 20. Rxe7 {[%emt 0:00:03] Weighted Error Value: White=0.01 (flawless) /Black=0.53} 1-0

[Event "MPL-4 Indian Chess Tour 2022"]
[Site "Chess24"]
[Date "2022.09.27"]
[Round "6.7"]
[White "Pranav, V."]
[Black "Sethuraman, S.P."]
[Result "1-0"]
[ECO "D48"]
[WhiteElo "2530"]
[BlackElo "2638"]
[Annotator "TA"]
[PlyCount "127"]
[EventDate "2022.09.29"]
[EventType "tourn (rapid)"]
[EventCountry "NET"]
[SourceTitle "playchess.com"]
[Source "ChessBase"]
[SourceQuality "1"]
[WhiteTeam "India"]
[BlackTeam "India"]
[WhiteTeamCountry "IND"]
[BlackTeamCountry "IND"]
[TimeControl "900+10"]

{[%evp 27,127,17,19,0,20,0,0,0,0,0,0,0,90,90,85,81,85,0,8,17,23,0,0,-16,0,-88,-75,-75,-82,-89,-95,-136,-135,-136,-129,-137,-102,-92,-102,-100,-100,-97,-104,-105,-88,-215,-210,-195,-133,-259,-128,-364,-370,-367,-360,-352,-338,-864,-208,-1061,-918,-1031,-985,-996,-568,-709,-704,-641,-451,-443,-439,-439,-435,-413,-351,-376,-347,-340,-286,-420,-400,-374,-195,-559,-538,-514,-515,-460,-464,-817,-941,-1108,-476,-539,0,-335,-137,-772,-716,-536,-203,-246]} 1. d4 {[%emt 0:00:00]} d5 {[%emt 0:00:00]} 2. c4 {[%emt 0:00:07]} c6 {[%emt 0:00:01]} 3. Nc3 {[%emt 0:00:03]} Nf6 {[%emt 0:00:01]} 4. e3 {[%emt 0:00:00]} e6 {[%emt 0:00:13]} 5. Nf3 {[%emt 0:00:02]} Nbd7 {[%emt 0:00:07]} 6. Bd3 {[%emt 0:00:03]} dxc4 {[%emt 0:00:04]} 7. Bxc4 {[%emt 0:00:00]} b5 {[%emt 0:00:00]} 8. Bd3 {[%emt 0:00:01]} Bb7 {[%emt 0:00:02]} 9. O-O {[%emt 0:00:02]} a6 {[%emt 0:00:08]} 10. e4 {[%emt 0:00:13]} c5 {[%emt 0:00:01]} 11. d5 {[%emt 0:00:12]} c4 {[%emt 0:00:13]} 12. Bc2 {[%emt 0:00:55]} Qc7 {[%emt 0:00:01]} 13. dxe6 {[%emt 0:00:25]} fxe6 {[%emt 0:00:00]} 14. Ng5 {[%emt 0:00:42]} Nc5 $1 {[%emt 0:00:20]} 15. Be3 {[%emt 0:00:36][%cal Bc1e3,Be3d4,Bd4e5][%mdl 32] D48: Semi-Slav: Meran System: 7...b5 8 Bd3 a6.} h6 {[%emt 0:01:20]} 16. Nf3 {[%emt 0:01:56]} Rd8 {[%emt 0:01:33]} (16... Bxe4 17. Nxe4 Ncxe4 18. a4 $18) 17. Qe2 {[%emt 0:00:44] The position is equal.} Ng4 {[%emt 0:00:48]} (17... Ncxe4 $2 18. Nxe4 Nxe4 19. Bd4 $18) 18. Rad1 {[%emt 0:01:30]} Rxd1 {[%emt 0:02:53]} 19. Rxd1 {[%emt 0:00:07][%cal Oe4e5] [#] Hoping for e5!} Be7 $146 {[%emt 0:00:02] [#]} (19... Nxe3 $11 {keeps the balance.} 20. Qxe3 Be7) ({Predecessor:} 19... Nxe3 20. Qxe3 Be7 21. b4 cxb3 22. axb3 O-O 23. Ne2 {0-1 (23) Carlsen,T-Niebergall,G DESC email 2016}) 20. Bd4 $1 $16 {[%emt 0:02:33]} O-O {[%emt 0:03:26]} 21. h3 {[%emt 0:00:36]} Nf6 {[%emt 0:00:02][%cal Bg4f6,Bf6h5,Bh5f4][%mdl 32] [#]} 22. a3 {[%emt 0:03:20]} ({White should try} 22. Ne5 $1 $16) 22... Nh5 {[%emt 0:02:09]} 23. Be5 {[%emt 0:00:05]} Qc8 {[%emt 0:00:13]} 24. Nd4 {[%emt 0:00:23]} Qe8 {[%emt 0:00:04]} 25. Qg4 {[%emt 0:01:02]} Qf7 {[%emt 0:00:22]} 26. Rf1 {[%emt 0:00:31] Active counter play!} (26. f3 $11) 26... Nf4 $17 {[%emt 0:01:40]} 27. Bxf4 {[%emt 0:01:57]} Qxf4 {[%emt 0:00:02]} ({Of course not} 27... h5 28. Qf3 Qxf4 29. Qxh5 $11) 28. Qxf4 {[%emt 0:00:00]} Rxf4 {[%emt 0:00:02]} 29. Nde2 {[%emt 0:00:14]} Rf8 {[%emt 0:00:02]} 30. Rd1 {[%emt 0:00:04]} Kf7 {[%emt 0:01:07]} 31. f4 {[%emt 0:00:19]} Rd8 {[%emt 0:00:48]} 32. Rxd8 {[%emt 0:00:31]} Bxd8 {[%emt 0:00:00]} 33. Kf2 {[%emt 0:00:03]} Bb6 {[%emt 0:01:34] aiming for ...Nd3+.} 34. Kf3 {[%emt 0:00:12]} Bc6 {[%emt 0:00:25]} ({Don't play} 34... Nd3 35. Bxd3 cxd3 36. Nc1 $11) 35. g3 {[%emt 0:00:41]} Bd7 {[%emt 0:00:16]} ({Reject} 35... Nd3 $6 36. Bxd3 cxd3 37. Nc1 $11) 36. f5 {[%emt 0:00:24]} (36. Nb1 $17) 36... exf5 $19 {[%emt 0:00:10]} 37. exf5 {[%emt 0:00:04]} Bc6+ {[%emt 0:00:13]} ({Better is} 37... Nd3 $19 {Threatens to win with ...Ne1+.} 38. Nd5 Bc6) 38. Kf4 {[%emt 0:00:13]} (38. Ne4 $17 {keeps fighting.}) 38... Bc7+ {[%emt 0:00:06] A strong pair of Bishops.} (38... Nd3+ $19 39. Bxd3 cxd3) 39. Kg4 $2 {[%emt 0:00:02]} (39. Ke3 $17) 39... Be5 {[%emt 0:00:23]} 40. Nf4 {[%emt 0:00:14]} a5 {[%emt 0:00:03]} 41. Nd1 {[%emt 0:00:38]} Ne4 {[%emt 0:00:20]} 42. b3 $2 {[%emt 0:00:12]} (42. Bxe4 Bxe4 43. Nc3) 42... c3 $2 {[%emt 0:00:27]} (42... Nd2 {( -> ...Bf3+)} 43. h4 Bf3+ 44. Kh3 cxb3 45. Bxb3+ Nxb3) 43. Ne6 $2 {[%emt 0:00:10]} (43. Kf3) 43... Nf6+ {[%emt 0:00:16]} 44. Kh4 {[%emt 0:00:00]} Be4 {[%emt 0:00:10]} 45. Bxe4 {[%emt 0:00:07]} Nxe4 {[%emt 0:00:00][%mdl 4096] Endgame KBN-KNN} 46. Ne3 {[%emt 0:00:00]} Nxg3 {[%emt 0:00:15]} 47. Kg4 {[%emt 0:00:06]} g6 {[%emt 0:00:19]} 48. Nd8+ {[%emt 0:00:03]} Ke8 {[%emt 0:00:12]} 49. Nc6 {[%emt 0:00:02]} Nxf5 {[%emt 0:00:05]} 50. Nc2 {[%emt 0:00:08]} Bc7 {[%emt 0:00:07]} 51. Na7 {[%emt 0:00:23]} Nd6 {[%emt 0:00:09]} 52. Nc6 {[%emt 0:00:01]} Kd7 {[%emt 0:00:08]} 53. Ne5+ {[%emt 0:00:02]} (53. N6d4 {was the only chance.}) 53... Ke6 {[%emt 0:00:06]} 54. Nxg6 {[%emt 0:00:00]} Ne4 {[%emt 0:00:14]} (54... a4 $142 55. Nf4+ Ke5 56. Nd3+ Kd5 57. bxa4 bxa4) 55. Kh5 $2 {[%emt 0:00:49]} (55. Nf4+ {was the crucial defense.} Ke5 56. Ne2) 55... Bd6 {[%emt 0:00:14]} 56. Kxh6 {[%emt 0:00:05]} b4 {[%emt 0:00:13]} 57. axb4 {[%emt 0:00:04]} axb4 {[%emt 0:00:00] And now ...Kf6 would win.} 58. h4 {[%emt 0:00:09]} (58. Kg7 $142 Ng3 59. h4) 58... Kf6 {[%emt 0:00:09]} 59. h5 {[%emt 0:00:14]} Nd2 {[%emt 0:00:13]} (59... Ng3 $142 {Strongly threatening ...Nf5+.} 60. Nh4 Bf8+ 61. Kh7 Nxh5) 60. Na1 {[%emt 0:00:01]} Ne4 $2 {[%emt 0:00:22]} (60... Nf3 $19 61. Nc2 Ng5) 61. Kh7 $2 {[%emt 0:00:06][%mdl 8192]} (61. Nc2 $11 {and White is okay.} Ng3 62. Nh4) 61... Kg5 {[%emt 0:00:05]} (61... Ng3 $19 {has better winning chances.} 62. h6 Nf5) 62. Kg7 $2 {[%emt 0:00:47][%mdl 8192]} (62. h6 $17) 62... Kxh5 {[%emt 0:00:01] White must now prevent ...Kg4.} 63. Kf7 {[%emt 0:00:08]} Kg5 $2 {[%emt 0:00:41]} (63... Kg4 64. Ke6 Kf3 65. Ne5+ Ke3) 64. Nc2 {[%emt 0:00:07][%mdl 32768] Weighted Error Value: White=0.71/Black=0.63. Loss on time!?} 1-0

[Event "MPL-4 Indian Chess Tour 2022"]
[Site "Chess24"]
[Date "2022.09.27"]
[Round "6.8"]
[White "Puranik, Abhimanyu"]
[Black "Aditya Mittal"]
[Result "1/2-1/2"]
[ECO "A28"]
[WhiteElo "2603"]
[BlackElo "2485"]
[Annotator "TA"]
[PlyCount "105"]
[EventDate "2022.09.29"]
[EventType "tourn (rapid)"]
[EventCountry "NET"]
[SourceTitle "playchess.com"]
[Source "ChessBase"]
[SourceQuality "1"]
[WhiteTeam "India"]
[BlackTeam "India"]
[WhiteTeamCountry "IND"]
[BlackTeamCountry "IND"]
[TimeControl "900+10"]

{[%evp 9,105,0,0,0,12,6,10,0,0,0,0,0,9,0,14,7,0,-2,-3,0,0,0,0,0,41,38,48,50,70,9,1,0,0,0,4,7,17,35,54,41,58,12,12,11,11,10,10,15,18,19,17,9,23,0,0,0,0,0,0,-16,-20,-25,-12,-19,-23,-19,-1,-8,0,-45,-8,-8,-8,-8,-9,-9,-9,-9,-9,-7,0,0,-8,-8,0,0,0,0,0,0,0,0,0,0,0,0,0,0]} 1. c4 {[%emt 0:00:00]} Nf6 {[%emt 0:00:00]} 2. Nc3 {[%emt 0:00:02]} e5 {[%emt 0:00:02]} 3. Nf3 {[%emt 0:00:02]} Nc6 {[%emt 0:00:00]} 4. e4 {[%emt 0:00:01]} Bb4 {[%emt 0:00:02]} 5. d3 {[%emt 0:00:02]} d6 {[%emt 0:00:01]} 6. a3 {[%emt 0:00:04] A28: English Opening: Four Knights Variation.} Bc5 {[%emt 0:00:02] Strongly threatening ...Ng4.} (6... Bxc3+ $5 7. bxc3 h6 $11) 7. b4 {[%emt 0:00:01]} Bb6 {[%emt 0:00:00]} 8. Na4 {[%emt 0:00:06]} Bd4 {[%emt 0:00:07]} 9. Rb1 {[%emt 0:00:01]} Bg4 {[%emt 0:00:04]} 10. Be2 {[%emt 0:00:01]} Bxf3 {[%emt 0:00:06]} 11. Bxf3 {[%emt 0:00:00]} a6 {[%emt 0:00:00] 11...Qe7 might become the main line.} 12. Qd2 {[%emt 0:00:12]} b5 {[%emt 0:00:15]} 13. Nc3 {[%emt 0:00:39]} bxc4 {[%emt 0:00:52]} 14. dxc4 {[%emt 0:00:02]} Bxc3 {[%emt 0:00:01]} 15. Qxc3 {[%emt 0:00:02]} Nd4 {[%emt 0:00:00]} 16. Qd3 {[%emt 0:00:26] [#]} Nxf3+ $146 {[%emt 0:00:46]} ({Predecessor:} 16... O-O 17. Bd1 h6 18. O-O Qd7 19. f4 Qc6 20. Re1 Rfe8 21. Bb2 Ne6 22. f5 Ng5 {½-½ (58) Nyzhnyk,I (2674)-Niemann,H (2642) Saint Louis 2022}) 17. Qxf3 {[%emt 0:00:03]} h6 {[%emt 0:00:10]} 18. O-O {[%emt 0:00:02]} Qd7 {[%emt 0:00:09]} 19. h3 {[%emt 0:01:59]} (19. Re1 $14) 19... Qc6 $11 {[%emt 0:00:12][%csl LRc4,LRe4]} 20. Re1 {[%emt 0:01:11]} Qxc4 {[%emt 0:00:04]} 21. Bd2 {[%emt 0:01:11]} Qc2 {[%emt 0:00:51]} 22. Qe3 {[%emt 0:01:27]} Qa4 {[%emt 0:00:12]} 23. Rbc1 {[%emt 0:00:04]} Rc8 {[%emt 0:01:09]} 24. Qg3 {[%emt 0:00:15]} g5 {[%emt 0:03:53]} 25. h4 {[%emt 0:00:03]} (25. Rc4 $14) 25... Qd7 {[%emt 0:03:20]} 26. hxg5 {[%emt 0:00:28]} hxg5 {[%emt 0:00:03]} 27. Bxg5 {[%emt 0:00:07]} Rg8 {[%emt 0:00:22] [#] And now ...Nh7 would win.} 28. Qh4 {[%emt 0:01:25] Against Nh7} Qg4 {[%emt 0:00:03]} 29. Qxg4 {[%emt 0:01:47]} Nxg4 {[%emt 0:00:00]} 30. Bd2 {[%emt 0:00:08]} Kd7 {[%emt 0:00:18]} 31. Rc3 {[%emt 0:00:01]} Nf6 {[%emt 0:00:37][%cal Bg4f6,Bf6h5,Bh5f4,Bf4e6,Be6d4][%mdl 32]} 32. f3 {[%emt 0:00:17]} Rg3 {[%emt 0:01:21]} 33. Re2 {[%emt 0:00:23]} Nh5 {[%emt 0:00:46]} 34. Be1 {[%emt 0:00:25]} Nf4 {[%emt 0:00:17]} 35. Rec2 {[%emt 0:00:05]} Rg6 {[%emt 0:00:06]} 36. g3 {[%emt 0:00:44]} Ne6 {[%emt 0:00:13]} 37. Rh2 {[%emt 0:00:25]} Nd4 {[%emt 0:00:11][%cal Oa6a5]} 38. Kf2 {[%emt 0:00:55]} c5 {[%emt 0:00:48]} 39. f4 {[%emt 0:01:21]} Nb5 {[%emt 0:00:52]} 40. Rc1 {[%emt 0:00:50] The position is equal.} exf4 {[%emt 0:01:12]} 41. gxf4 {[%emt 0:00:02]} Re6 {[%emt 0:00:15]} 42. a4 {[%emt 0:02:36]} Nd4 {[%emt 0:00:05]} 43. Ke3 {[%emt 0:00:48]} Rce8 {[%emt 0:00:19]} 44. e5 {[%emt 0:00:02]} dxe5 {[%emt 0:00:11]} (44... Rf6 {is more complex.} 45. Bd2 Nc6 46. b5 axb5 47. axb5 Nd4) 45. Rxc5 {[%emt 0:00:32]} exf4+ {[%emt 0:01:00]} 46. Kxd4 {[%emt 0:00:01] [#] Bc3 is the strong threat.} Rd6+ {[%emt 0:00:06]} 47. Kc3 {[%emt 0:00:37] Black must now prevent Bd2.} Rxe1 {[%emt 0:00:01][%mdl 4096] Endgame KRR-KRR} 48. Rf5 {[%emt 0:00:17][%csl LRf4,LRf7]} Re3+ {[%emt 0:00:09]} 49. Kc2 {[%emt 0:00:21]} Rc6+ {[%emt 0:00:39]} 50. Kd2 {[%emt 0:00:11]} Rd6+ {[%emt 0:00:30]} 51. Kc2 {[%emt 0:00:02]} Rc6+ {[%emt 0:00:00]} 52. Kd2 {[%emt 0:00:01]} Rd6+ {[%emt 0:00:19]} 53. Kc2 {[%emt 0:00:02] Weighted Error Value: White=0.06 (flawless) /Black=0.05 (flawless)} 1/2-1/2

[Event "MPL-4 Indian Chess Tour 2022"]
[Site "Chess24"]
[Date "2022.09.27"]
[Round "7.1"]
[White "Aditya Mittal"]
[Black "Raja Harshit"]
[Result "1/2-1/2"]
[ECO "D37"]
[WhiteElo "2485"]
[BlackElo "2459"]
[Annotator "TA"]
[PlyCount "71"]
[EventDate "2022.09.29"]
[EventType "tourn (rapid)"]
[EventCountry "NET"]
[SourceTitle "playchess.com"]
[Source "ChessBase"]
[SourceQuality "1"]
[WhiteTeam "India"]
[BlackTeam "India"]
[WhiteTeamCountry "IND"]
[BlackTeamCountry "IND"]
[TimeControl "900+10"]

{[%evp 9,71,16,21,16,40,28,35,13,27,31,19,19,16,15,20,0,0,0,12,0,0,0,0,0,0,0,0,-5,-10,-28,0,0,0,-10,-11,-16,6,10,0,-71,-78,-72,-75,-97,-83,-81,-93,-85,-85,-95,-87,-122,-8,-14,98,0,0,0,0,0,0,0,0,0]} 1. d4 {[%emt 0:00:00]} Nf6 {[%emt 0:00:00]} 2. c4 {[%emt 0:00:01]} e6 {[%emt 0:00:19]} 3. Nf3 {[%emt 0:00:02]} d5 {[%emt 0:00:02]} 4. Nc3 {[%emt 0:00:01]} Be7 {[%emt 0:00:08]} 5. Bf4 {[%emt 0:00:02]} O-O {[%emt 0:00:01]} 6. a3 {[%emt 0:00:01] D37: Queen's Gambit Declined: 5 Bf4.} a6 {[%emt 0:01:22]} 7. c5 {[%emt 0:01:12] [#]} Ne4 $146 {[%emt 0:00:40]} ({Predecessor:} 7... b6 8. b4 Ne4 9. Qc2 f5 10. e3 bxc5 11. bxc5 g5 12. Bg3 Nd7 13. Nxe4 fxe4 {1-0 (37) Krasenkow,M (2630)-Grooten,H (2374) Groningen 2018}) 8. e3 {[%emt 0:00:51] White is slightly better.} Nxc3 {[%emt 0:00:56]} 9. bxc3 {[%emt 0:00:00]} b6 {[%emt 0:00:02]} 10. cxb6 {[%emt 0:00:07]} cxb6 {[%emt 0:00:00]} 11. Bd3 {[%emt 0:00:12]} Bd6 {[%emt 0:01:46]} 12. h4 {[%emt 0:02:08][%cal Bh2h4,Bh4h5,Bh5h6][%mdl 32]} Bxf4 {[%emt 0:00:28]} 13. exf4 {[%emt 0:00:05]} Nd7 {[%emt 0:00:09]} 14. Qc2 {[%emt 0:02:29]} Nf6 {[%emt 0:00:24]} 15. Ne5 {[%emt 0:00:05]} a5 {[%emt 0:00:07]} 16. h5 {[%emt 0:01:07]} Ba6 {[%emt 0:00:32]} 17. h6 {[%emt 0:00:03]} Bxd3 {[%emt 0:00:15]} 18. Qxd3 {[%emt 0:00:03] [#] Black must now prevent hxg7.} g6 {[%emt 0:00:02]} 19. Rb1 {[%emt 0:00:16]} Rc8 {[%emt 0:00:15]} 20. O-O {[%emt 0:01:24]} Qd6 {[%emt 0:00:29]} 21. Rb3 {[%emt 0:00:36]} Ne4 {[%emt 0:00:46][%cal Bf6e4,Be4c3,Bc3e2,Be2f4][%mdl 32]} 22. Rfb1 {[%emt 0:00:37]} a4 {[%emt 0:00:19]} 23. Rxb6 {[%emt 0:00:34]} Qxa3 {[%emt 0:00:02]} 24. Nc6 {[%emt 0:03:08]} (24. f3 $11 {remains equal.} Ng3 25. Nd7) 24... Rc7 $17 {[%emt 0:01:39] Hoping for ...Rfc8.} ({Of course not} 24... Nxc3 25. Rf1 $11) (24... Qxc3 25. Qxc3 Nxc3 26. Ne7+ Kh8 27. Nxc8 Nxb1 28. Nd6 $14) 25. f3 {[%emt 0:02:31]} Qxc3 {[%emt 0:02:13]} ({Don't play} 25... Nxc3 26. Re1 $16) 26. Qxc3 {[%emt 0:00:03]} Nxc3 {[%emt 0:00:00]} 27. Ra1 {[%emt 0:00:01]} Rfc8 {[%emt 0:00:15]} 28. Ne5 {[%emt 0:00:13]} Ne2+ {[%emt 0:02:45]} 29. Kh2 {[%emt 0:00:04]} Nxf4 {[%emt 0:00:08]} 30. Rxa4 {[%emt 0:00:45][%cal Ob6c6] [#]} Rc2 {[%emt 0:00:04] Prevents Rc6.} (30... f6 $1 $17 {[%cal Rf6e5]} 31. Ng4 g5) 31. Rc6 $11 {[%emt 0:00:35]} Rxg2+ {[%emt 0:02:37]} 32. Kh1 {[%emt 0:00:02][%cal Rc6c8]} Rb8 {[%emt 0:00:02] The position is equal.} 33. Rb6 {[%emt 0:00:05][%cal Rb6b8] Against Rb1+} Rc8 {[%emt 0:00:44][%cal Rc8c1]} 34. Rc6 {[%emt 0:00:01][%cal Rc6c8] Prevents Rc1+.} Rb8 {[%emt 0:00:48] ( -> ...Rb1+)} 35. Rb6 {[%emt 0:00:11][%cal Rb6b8] Prevents Rb1+.} Rc8 {[%emt 0:00:22][%cal Rc8c1]} 36. Rc6 {[%emt 0:00:50] Prevents Rc1+.  Weighted Error Value: White=0.10 (very precise) /Black=0.12 (very precise)} 1/2-1/2